Cogmind - Beta 15 @@@ ROGUE MODE // 2025.05.24 @ 23:03:01 Player: star Result: Destroyed by EMP Trap Performance ------------- Evolutions (1) 500 Regions Visited (4) 800 Robots Destroyed (16) 80 Value Destroyed (275) 275 Prototype IDs (0) 0 Alien Tech Used (0) 0 Bonus (0) 0 TOTAL SCORE: 1655 Bonus ------- None Cogmind --------- Core Integrity 0/400 Matter 300/300 Energy 100/100 System Corruption 0% Temperature Cool (0) Movement Core (100) Ox1 Location -9/Mines Parts ------- > --- POWER (1) -------- (None) > --- PROPULSION (2) --- (None) > --- UTILITY (2) ------ Small Storage Unit > --- WEAPON (4) ------- (None) > --- INVENTORY (8) ---- Light Ion Engine Wheel Improved Heat Sink Disposable Heat Sink Medium Matter Pod (92) Heavy Explosive Trap Peak State ------------ > --- POWER ------------ Light Ion Engine > --- PROPULSION ------- Light Treads Wheel > --- UTILITY ---------- Improved Heat Sink Small Storage Unit > --- WEAPON ----------- Small Laser Particle Gun Assault Rifle Assault Rifle > --- INVENTORY -------- Light Ion Engine Wheel Propulsion Shielding Medium Laser Light Assault Rifle Heavy Explosive Trap Heavy Explosive Trap [Rating: 12] Favorites ----------- Power Light Ion Engine Engine Light Ion Engine Propulsion Wheel Treads Light Treads Wheel Wheel Utility Small Storage Unit Device Disposable Heat Sink Storage Small Storage Unit Protection Propulsion Shielding Weapon Assault Rifle Energy Gun Particle Gun Ballistic Gun Assault Rifle Build | -11 -10 -10 -9 -9 ------- Run | Yrd Mat Min Mat Min Slots Evolved 2 | . . . 2 . Power . | . . . . . Propulsion . | . . . . . Utility . | . . . . . Weapon 2 | . . . 2 . Parts Attached 18 | 6 . 5 2 5 Power 3 | 1 . 1 . 1 Engine 3 | 1 . 1 . 1 Core . | . . . . . Reactor . | . . . . . Propulsion 4 | 2 . 1 1 . Treads 1 | . . . 1 . Leg . | . . . . . Wheel 3 | 2 . 1 . . Hover . | . . . . . Flight . | . . . . . Utility 4 | 1 . 1 . 2 Device 2 | . . . . 2 Storage 1 | 1 . . . . Processor . | . . . . . Hackware . | . . . . . Protection 1 | . . 1 . . Artifact . | . . . . . Weapon 7 | 2 . 2 1 2 Energy Gun 3 | 1 . 1 1 . Energy Cannon . | . . . . . Ballistic Gun 4 | 1 . 1 . 2 Ballistic Cannon . | . . . . . Launcher . | . . . . . Special Weapon . | . . . . . Impact Weapon . | . . . . . Slashing Weapon . | . . . . . Piercing Weapon . | . . . . . Special Melee Weapon . | . . . . . Unidentified Prototypes . | . . . . . Parts Lost 12 | . . 2 . 10 Power 2 | . . 1 . 1 Propulsion 3 | . . 1 . 2 Utility . | . . . . . Weapon 7 | . . . . 7 Highest Loss Streak 9 | . . 1 . 9 To Critical Strikes . | . . . . . Average Backups 4 | . 2 5 4 5 Power . | . . . 1 1 Propulsion 1 | . 1 1 1 1 Utility 1 | . . . 1 1 Weapon 1 | . 1 2 1 1 Tool/Special . | . . . . . Unused Backups 3 | . . . . 3 Power 1 | . . . . 1 Propulsion 1 | . . . . 1 Utility 1 | . . . . 1 Weapon . | . . . . . Tool/Special . | . . . . . Average Slot Usage (%) 91 | . 85 84 99 95 Engine 11 | . 14 11 11 10 Treads 6 | . . . 7 10 Wheel 16 | . 28 27 14 10 Device 5 | . . . . 10 Storage 12 | . 14 14 11 11 Protection 2 | . . 2 11 . Energy Gun 19 | . 14 14 22 22 Ballistic Gun 17 | . 14 14 21 19 Peak Build Rating 12 | 6 6 9 10 12 Average Rating 9 | 4 6 7 9 11 On Entrance 6 | . 6 6 9 10 Naked Turns . | . . . . . Heaviest Build 18 | 12 12 14 18 17 Greatest Support 26 | 26 26 26 20 20 Greatest Overweight (x) 4 | . . . . 4 Average Overweight (x) . | . . . . . Largest Inventory Capacity 8 | 8 8 8 8 8 Average Capacity 7 | 6 8 8 8 8 Most Carried 8 | 1 3 8 7 8 Average Carried 6 | . 2 5 6 7 Final Capacity 8 | 8 8 8 8 8 Final Carried 8 | 1 3 8 7 6 Class Distribution -------------------- 45% | Scavenger-Gunner 40% | Mutant 11% | Tank Dominant Class ---------------- Mutant | -10/Materials Mutant | -10/Mines Tank | -9/Materials Scavenger-Gunner | -9/Mines Resources | -11 -10 -10 -9 -9 ----------- Run | Yrd Mat Min Mat Min Matter Collected 601 | 260 . 97 67 177 Remotely . | . . . . . Salvage Created 411 | . . 168 93 150 Parts 26 | . . 10 5 11 Haulers Intercepted . | . . . . . Recyclers Shooed 1 | . . . . 1 Parts Field Recycled . | . . . . . Retrieved Matter . | . . . . . Parts Self-Destructed . | . . . . . Prevented . | . . . . . Kills | -11 -10 -10 -9 -9 ------- Run | Yrd Mat Min Mat Min Combat Hostiles Destroyed 19 | . . 7 2 10 Guns 18 | . . 7 2 9 AOE 1 | . . . . 1 Classes Destroyed 5 | . . 2 1 2 Builder 1 | . . . . 1 Swarmer 11 | . . 5 . 6 Grunt 3 | . . 2 1 . Sentry 1 | . . . 1 . Assembled 4 | . . . . 4 Best Kill Streak 4 | . . 3 1 4 Combat Bots Only 4 | . . 3 1 4 Max Kills in Single Turn 2 | . . 1 1 2 Gunslinging 1 | . . . . 1 Exploded 1 | . . . . 1 Melee . | . . . . . Uniques/NPCs Destroyed . | . . . . . Combat | -11 -10 -10 -9 -9 -------- Run | Yrd Mat Min Mat Min Hostile Shots Fired 129 | . . 34 6 89 Missed 32 | . . 5 3 24 Hits 97 | . . 29 3 65 Melee 7 | . . . . 7 Projectile 90 | . . 29 3 58 AOE 5 | . . . . 5 Critical Strikes 1 | . . . . 1 Damage Taken 1412 | . 39 323 38 1012 Core 491 | . . 90 . 401 Absorbed by Shields . | . . . . . Redirected to Shielding 8 | . . . . 8 Core Remaining (%) 82 | 100 . 64 . . Volleys Fired 47 | . . 19 5 23 Largest 4 | . . 2 4 4 Hottest 175 | . . 85 155 175 Shots Fired 123 | . . 38 19 66 Gun 123 | . . 38 19 66 Cannon . | . . . . . Launcher . | . . . . . Special . | . . . . . Kinetic 63 | . . 19 9 35 Thermal 60 | . . 19 10 31 Explosive . | . . . . . Electromagnetic . | . . . . . Robot Hit Streak 9 | . . 9 5 6 Robot Miss Streak 6 | . . 2 2 6 Penetration Max . | . . . . . Secondary Targets 5 | . . 1 . 4 Max Gunslinging Chain 2 | . . 1 . 2 Shots Hit Robots 70 | . . 25 12 33 Core Hits 29 | . . 10 5 14 Critical Kills . | . . . . . Critical Parts Destroyed 4 | . . 2 . 2 Critical Strikes 6 | . . 2 1 3 Burn 2 | . . . 1 1 Destroy 4 | . . 2 . 2 Melee Attacks . | . . . . . Impact . | . . . . . Slashing . | . . . . . Piercing . | . . . . . Sneak Attacks . | . . . . . Combat Hostiles . | . . . . . Follow-up Attacks . | . . . . . Damage Inflicted 967 | . . 342 178 447 Guns 967 | . . 342 178 447 Cannons . | . . . . . Explosions . | . . . . . Melee . | . . . . . Ramming . | . . . . . Kinetic 442 | . . 149 83 210 Thermal 525 | . . 193 95 237 Explosive . | . . . . . Electromagnetic . | . . . . . Impact . | . . . . . Slashing . | . . . . . Piercing . | . . . . . Highest Corruption . | . . . . . Average Corruption . | . . . . . Corruption Purged . | . . . . . Corruption Blocked . | . . . . . Overload Shots . | . . . . . Overflow Damage . | . . . . . Projectiles . | . . . . . Explosions . | . . . . . Melee . | . . . . . Knockbacks . | . . . . . Impact . | . . . . . Kinetic . | . . . . . Secondary . | . . . . . Self-Inflicted Damage . | . . . . . Shots . | . . . . . Rammed . | . . . . . Targets Rammed . | . . . . . Kicked . | . . . . . Crushed . | . . . . . Highest Temperature 329 | . . 216 159 329 Average Temperature 99 | . . 95 76 112 Received Heat Transfer 126 | . . 111 15 . Effects 2 | . . 1 . 1 Energy Bleed 1 | . . . . 1 Interference 1 | . . 1 . . Siege Activations . | . . . . . Martial Activations . | . . . . . Shielding Activations . | . . . . . Robots Disrupted . | . . . . . Combat Hostiles . | . . . . . Robots Corrupted . | . . . . . Combat Hostiles . | . . . . . Parts Fried . | . . . . . Impact Corruptions . | . . . . . Robots Melted . | . . . . . Combat Hostiles . | . . . . . Parts Melted 4 | . . . 3 1 Heat Transferred 1447 | . . 481 333 633 Parts Sabotaged . | . . . . . Parts Stolen . | . . . . . Parts Stripped . | . . . . . Power Chain Reactions . | . . . . . Alert | -11 -10 -10 -9 -9 ------- Run | Yrd Mat Min Mat Min Maximum Alert Level . | . . . . . Low Security (%) 100 | 100 100 100 100 100 Level 1 . | . . . . . Level 2 . | . . . . . Level 3 . | . . . . . Level 4 . | . . . . . Level 5 . | . . . . . High Security . | . . . . . Max Security . | . . . . . Peak Influence 80 | . . 80 35 79 Initial 11 | . . . 11 9 Average 19 | . . 42 16 17 Influence Increases 397 | . 8 170 74 145 Destroy 0b10 Robot/C 300 | . . 140 40 120 Destroy 0b10 Robot/NC 5 | . . . . 5 Destroy Leader 70 | . . 30 20 20 Successful Hack 22 | . 8 . 14 . Influence Decreases 397 | . 8 140 79 170 Entered New Map 35 | . . . 19 16 Time Decay 307 | . 8 120 60 119 Lost Part 55 | . . 20 . 35 Squads Dispatched 3 | . 1 . 2 . Investigation . | . . . . . Extermination . | . . . . . Reinforcement 3 | . 1 . 2 . Assault . | . . . . . Garrison . | . . . . . Intercept . | . . . . . Searches Triggered . | . . . . . Construction Impeded . | . . . . . Haulers Reinforced . | . . . . . Active Scanning Responses . | . . . . . Cargo Convoy Interrupts . | . . . . . Stealth | -11 -10 -10 -9 -9 --------- Run | Yrd Mat Min Mat Min Distress Signals . | . . . . . Communications Jammed . | . . . . . Distress Signals . | . . . . . Times Spotted 42 | . 1 8 5 28 Peak Tracking Total 15 | . . 3 4 15 Tactical Retreats 2 | . . . . 2 Traps | -11 -10 -10 -9 -9 ------- Run | Yrd Mat Min Mat Min Traps Triggered 1 | . 1 . . . Indirectly . | . . . . . Trap Hack Attempts . | . . . . . Triggered . | . . . . . Disarmed . | . . . . . Reprogrammed . | . . . . . Reused 1 | . . . . 1 Traps Extracted . | . . . . . Installed 1 | . . . . 1 Triggered . | . . . . . Most Traps Carried 2 | . . 2 2 2 Machines | -11 -10 -10 -9 -9 ---------- Run | Yrd Mat Min Mat Min Machines Disabled . | . . . . . Max in Single Turn . | . . . . . Machines Repaired . | . . . . . Machines Dismantled . | . . . . . Machines Sabotaged . | . . . . . Overloaded Fab Kills . | . . . . . Hacking | -11 -10 -10 -9 -9 --------- Run | Yrd Mat Min Mat Min Machines Accessed 4 | . 1 . 2 1 Terminals 3 | . 1 . 2 . Fabricators . | . . . . . Repair Stations . | . . . . . Recycling Units . | . . . . . Scanalyzers . | . . . . . Garrison Access . | . . . . . Total Hacks 6 | . 1 . 4 1 Successful 4 | . 1 . 2 1 Failed 2 | . . . 2 . Catastrophic . | . . . . . Database Lockouts . | . . . . . Manual 5 | . 1 . 4 . Terminals 5 | . 1 . 4 . Fabricators . | . . . . . Repair Stations . | . . . . . Recycling Units . | . . . . . Scanalyzers . | . . . . . Garrison Access . | . . . . . Terminal Hacks 4 | . 1 . 2 1 Open Door 1 | . . . . 1 Branch Access Points 2 | . 1 . 1 . Hauler Manifests 1 | . . . 1 . Fabricator Hacks . | . . . . . Repair Station Hacks . | . . . . . Recycling Unit Hacks . | . . . . . Scanalyzer . | . . . . . Garrison Access Hacks . | . . . . . Unauthorized Hacks . | . . . . . Terminals . | . . . . . Fabricators . | . . . . . Repair Stations . | . . . . . Recycling Units . | . . . . . Scanalyzers . | . . . . . Garrison Access . | . . . . . Data Cores Recovered . | . . . . . Used . | . . . . . Hacking Detections 2 | . 1 . 1 . Full Trace Events . | . . . . . Feedback Events . | . . . . . Feedback Blocked . | . . . . . Robot Schematics Acquired . | . . . . . Robots Built . | . . . . . Authchips . | . . . . . Time . | . . . . . Total Robot Build Rating . | . . . . . Part Schematics Acquired . | . . . . . Parts Built . | . . . . . Authchips . | . . . . . Time . | . . . . . Total Part Build Rating . | . . . . . Parts Repaired . | . . . . . Time . | . . . . . Parts Recycled . | . . . . . Recycled Matter . | . . . . . Retrieved Matter . | . . . . . Retrieved Components . | . . . . . Parts Scanalyzed . | . . . . . Part Schematics Acquired . | . . . . . Parts Damaged . | . . . . . Bothacking | -11 -10 -10 -9 -9 ------------ Run | Yrd Mat Min Mat Min Used RIF Installer . | . . . . . Robots Hacked . | . . . . . Non-combat . | . . . . . Combat . | . . . . . Robot Hacks Applied . | . . . . . Relay Couplers Released . | . . . . . Fabnet Peak Effective % . | . . . . . Robots Rewired . | . . . . . Allies Hacked . | . . . . . Hacks Repelled . | . . . . . Allies | -11 -10 -10 -9 -9 -------- Run | Yrd Mat Min Mat Min Total Allies . | . . . . . Largest Group . | . . . . . Highest-Rated Group . | . . . . . Highest-Rated Ally . | . . . . . Total Orders . | . . . . . Ally Attacks . | . . . . . Total Damage . | . . . . . Kills . | . . . . . Allies Corrupted . | . . . . . Allies Melted . | . . . . . Intel | -11 -10 -10 -9 -9 ------- Run | Yrd Mat Min Mat Min Active Infowar (turns) . | . . . . . Robot Analysis Total . | . . . . . Derelict Logs Recovered 2 | . . 1 . 1 Drone Launches . | . . . . . Drone Recoveries . | . . . . . Exploration | -11 -10 -10 -9 -9 ------------- Run | Yrd Mat Min Mat Min Turns Passed 1142 | 38 155 241 129 579 Spaces Moved 795 | 33 169 202 78 313 Core 15 | 2 . . . 13 Treads 342 | . . . 43 299 Legs . | . . . . . Wheels 438 | 31 169 202 35 1 Hover . | . . . . . Flight . | . . . . . Fastest Speed 50 | 50 90 80 80 95 Average Speed 117 | 86 90 81 124 158 Slowest Speed 250 | 90 90 90 160 250 Overloaded Moves . | . . . . . Propulsion Burnouts . | . . . . . Robots Hopped . | . . . . . Potential Cave-ins . | . . . . . Cave-ins Triggered . | . . . . . Exploration Rate (%) 29 | 3 31 39 13 63 Regions Visited 4 Branch Regions 2 Pre-discovered Areas 1 | . . 1 . . Known Exits Taken 2 | . 1 . 1 . Unknown Exits Taken 2 | 1 . 1 . . Scrap Searched 3 | . . 2 . 1 Spaces Dug . | . . . . . Terrain Destroyed . | . . . . . Melee . | . . . . . Projectile . | . . . . . AOE . | . . . . . Terrain Rammed . | . . . . . Walls Destroyed . | . . . . . Machines Disabled . | . . . . . Actions | -11 -10 -10 -9 -9 --------- Run | Yrd Mat Min Mat Min Total 898 | 39 171 238 97 353 Wait 24 | . 1 9 11 3 Move 791 | 32 168 201 77 313 Hop . | . . . . . Pick Up 10 | 1 2 4 . 3 Fast Attach 8 | 6 . 2 . . Attach 6 | . . 1 2 3 Detach 1 | . . . . 1 Swap 7 | . . 2 2 3 Drop 3 | . . . . 3 Fire 47 | . . 19 5 23 Melee . | . . . . . Ram . | . . . . . Kick . | . . . . . Crush . | . . . . . Escape Stasis . | . . . . . Rewire . | . . . . . Trap 1 | . . . . 1 Miscellaneous . | . . . . . Route ------- -11/Scrapyard -10/Materials -10/Mines (discovered 2 exits: *Mat / Sub) -9/Materials (discovered 2 exits: *Min x2) -9/Mines History --------- Turn | Location | Event 25 | -11/Scrapyard | Discovered new exit (range 14) 39 | -11/Scrapyard | Entered Materials 158 | -10/Materials | Identified exit to Mines 194 | -10/Materials | Entered Mines 239 | -10/Mines | Identified exit to Subcaves 293 | -10/Mines | Met a Derelict bent on vengeance 300 | -10/Mines | Build established: Mutant 374 | -10/Mines | Found a hidden stash of uninstalled traps 425 | -10/Mines | Discovered new exit (range 11) 433 | -10/Mines | Learned location of Storage (-7) 435 | -10/Mines | Entered Materials 435 | -9/Materials | Evolved 2 slots: Weapon x2 490 | -9/Materials | Identified exit to Mines 564 | -9/Materials | Entered Mines 759 | -9/Mines | Learned Materials emergency access door positions 888 | -9/Mines | Build established: Scavenger-Gunner 1078 | -9/Mines | Assembled infested the area 1083 | -9/Mines | Assisted by a Guerilla fighting off Assembled 1124 | -9/Mines | Core integrity fell below 50% 1138 | -9/Mines | Core integrity fell below 20% 1143 | -9/Mines | Met a Derelict who couldn't figure out how to use a Trap Extractor 1143 | -9/Mines | Destroyed by EMP Trap Last Messages --------------- 01131_ Dropped Heavy Explosive Trap. 01132_ Installed Heavy Explosive Trap. 01134_ R-06 Scavenger knocked back. 01136_ as-42373 triggered Heavy Explosive Trap. 01136_ An explosion rips through the floor. 01136_ as-42373 destroyed. 01142_ The unstable cave ceiling collapses. 01142_ Connecting with SHOP.Sys... >>Open Door Sealed Doors opened. 01143_ 3P-MKY(g): "So I found this thing but I have no idea how to use it. And who the hell trapped this place to begin with?!" 01143_ 3P-MKY(g): "I give up! Here you try, I'm outta here before something nasty happens..." 01143_ Tosses Imp. Trap Extractor to the ground. 01143_ 3P-MKY(g) triggered EMP Trap. 01143_ A bubble of electromagnetic force engulfs the area. 01143_ Explosive Trap short circuited. 01143_ Machine disabled. 01143_ An explosion rips through the floor. Map ----- +----------------------------------------------------+ | ?# ### ## ####### #????? | | ?# ### | = ##????## ##???? | | ?## ## =!= ####??#### ####? | | ??# ## #### ##????## #? | | ### ## ####??## ##????## #? | | # #######??????# #????## #? | | # # #????????????# #????# ##? | | # ### ##???????????## ##????# ## ##?? | | #?# ####???###???#####?????# #### ##??? | | ### #### #?????????????# ##?#####???? | | ## #?????????????# ##????????? | | ### #?????????????## ##???????? | | #?## ##??????????????# ##??????? | | ##??## ##???????????????## #??????? | | ##????#### ##???????????????## #??????? | | ###????????## #????????????#### """ #??????? | | ???????????## #???????????## """ #??????? | | ?????????### ##???????????# """ ##??????? | | ????????## ####?????????# ## #???????? | | ????????# ##???????####?## #???????? | | ????????# [! #?########????# ##???????? | | ????????# =%= ?# " " #????## ##????????? | | ???????## * * #??!]!]! #?????#####?????????? | | ???????# =%! ##?# ! #???????????????????? | | ???????# ###/g ! #???????????????????? | | ???????# ###@ # ##?????????????????? | | ???????# # X #?????????????????? | | ???????# # #?????????????????? | | ???????# # #?????????????????? | | ??????# | #????????????????? | | ??????# # % # #????????????????? | | ???????## %## *% #????????????????? | | ???????# ## % ##????????????????? | | ??????? #?## ##### ##?????????????????? | | ?????? ???# ###????####??????????????????? | | ??????? ??? #????????????????????????????? | | ????????? #???## #????????????????????????????? | | ?????????????????# #????????????????????????????? | | ????????????????? ?????????????????????????????? | | ????????????????## ?????????????????????????????? | | ?????????????????# ?????????????????????????????? | | ?????????????????????????????????????????????????? | | ?????????????????????????????????????????????????? | | ?????????????????????????????????????????????????? | | ?????????????????????????????????????????????????? | | ?????????????????????????????????????????????????? | | ?????????????????????????????????????????????????? | | ?????????????????????????????????????????????????? | | ?????????????????????????????????????????????????? | | ?????????????????????????????????????????????????? | +----------------------------------------------------+ Best States ------------- Heat Dissipation 42 Coolant Potential 50 Energy Generation 10 Energy Capacity 125 Matter Stores 300 Matter Capacity 300 Sight Range 16 Terrain Scan Density 10 Propulsion Shielding 33 Evasion (%) 44 Recoil Reduction 1 Item Schematics ----------------- None Robot Schematics ------------------ None Fabricated ------------ Nothing Repaired ---------- Nothing Alien Tech Used ----------------- None Achievements -------------- None Challenges ------------ None Game ------ Seed ImpactWeaponsFlakker Manual? 0 Play Time 00:09:59 Cumulative 147.6 hours Start 2025.05.24 @ 22:55:52 End 2025.05.24 @ 23:03:01 Sessions 1 Manual Loads 0 Difficulty Rogue Special Mode None Game No. 256 Rogue 256 Adventurer 0 Explorer 0 Win Type - Total 1 Types 1/0/0/0/0/0/0/0/0/0 Lore% 51 Gallery% 57 Achievement% 48 Wizard Run 0 Options --------- Layout 0 ASCII 0 Keyboard 1 Movement Numpad Keybinds 0 Fullscreen 2 Font 18/SmallcapsGlow Map View 76x50 Zoom Use 0% Tactical HUD 1 Map Filters NONE Filters NONE Steam 1 RUN: 87d13076-d428-4467-a00a-7ed126229070